bitfinex/quotes_ETHUSD_20260313
["timestamp","ask_amount","ask_price","bid_price","bid_amount"]
[1773408187496,5.94385176,2184.8,2184.0,0.001]
[1773408187806,6.09162314,2184.6,2184.0,0.001]
[1773408188628,7.23576959,2185.1,2184.0,0.001]
[1773408188814,6.09162314,2184.9,2184.0,0.001]
[1773408189600,6.06197963,2184.9,2184.0,0.001]
[1773408189825,6.09162314,2184.7,2184.0,0.001]
[1773408190010,6.04724423,2184.7,2183.7,0.001]
[1773408190210,6.00339071,2184.7,2183.7,0.001]
[1773408190505,5.95969462,2184.7,2183.7,0.001]
[1773408191023,7.23568318,2185.2,2183.7,0.001]
[1773408191223,0.05720561,2185.1,2183.7,0.001]
[1773408191423,6.09162314,2185.0,2183.7,0.001]
[1773408191625,0.04282363,2184.9,2183.7,0.001]
[1773408191808,6.13444677,2184.9,2183.7,0.001]
[1773408192008,7.20597614,2184.8,2183.8,1.14479347]
[1773408192206,7.218935,2184.8,2183.7,1.14580412]
[1773408192526,0.05721609,2184.7,2183.7,1.14580412]
[1773408192718,6.09162314,2184.9,2183.7,1.14580412]
[1773408192918,0.05721347,2184.8,2183.8,0.0144272]
[1773408193913,6.09162314,2184.9,2183.9,1.14474105]
[1773408194226,0.22774493,2185.3,2184.0,0.01442129]
[1773408194428,6.09162314,2185.4,2184.0,6.12436115]
[1773408194828,1.14574651,2185.8,2184.2,6.10993986]
[1773408195032,0.05718991,2185.7,2184.4,1.69143954]
[1773408195217,0.002,2185.4,2184.5,0.01438823]
[1773408195830,0.002,2185.4,2184.5,6.12432809]
[1773408196047,2.22396926,2185.9,2184.6,1.14437425]
[1773408196244,0.05718729,2185.8,2184.6,1.14437425]
[1773408198020,0.05718729,2185.8,2184.8,1.14426949]
[1773408200112,0.002,2185.9,2184.9,1.628]
[1773408200308,0.002,2185.9,2184.9,7.73793986]
[1773408200835,0.05918468,2185.9,2184.8,1.14426949]
[1773408201706,0.05918468,2185.9,2184.8,7.31000407]
[1773408202417,1.20288061,2185.9,2184.8,7.31000407]
[1773408202619,0.05918468,2185.9,2184.8,7.31000407]
[1773408202829,1.20289999,2185.9,2184.8,7.31000407]
[1773408203318,1.20289578,2185.9,2184.8,7.31000407]
[1773408203836,5.88158563,2186.8,2185.4,1.69143954]
[1773408204138,0.002,2187.2,2186.0,1.69143954]
[1773408204139,5.88358563,2187.2,2186.0,1.69143954]
[1773408204338,0.002,2187.2,2186.3,1.69143954]
[1773408204510,0.002,2187.2,2186.4,6.16573458]
[1773408204841,7.02414938,2188.1,2186.7,1.69143954]
[1773408205512,7.02414938,2188.1,2186.7,7.85717412]
[1773408205709,7.02414938,2188.1,2186.7,6.16573458]
[1773408205910,4.57317503,2188.3,2186.7,6.16573458]
[1773408205911,0.003,2188.3,2186.7,6.16573458]
[1773408206116,1e-08,2188.6,2187.8,1.5744991]
[1773408206317,4.56723853,2189.6,2188.0,6.16573458]
[1773408206318,5.88158563,2189.6,2188.0,6.16573458]
[1773408206621,1.5744991,2190.8,2187.9,1.623]
[1773408206622,1.14163086,2189.9,2188.2,7.74023368]
[1773408206819,1.14163086,2189.9,2188.1,2.42269092]
[1773408206820,7.02521649,2189.9,2188.1,2.42269092]
[1773408207017,7.02321649,2189.9,2188.1,1.23089676]
[1773408207620,7.02321649,2189.9,2188.3,6.16573458]
[1773408207818,0.23129844,2190.3,2188.2,1.5744991]
[1773408207819,7.02287679,2190.6,2188.9,1.5744991]
[1773408208051,7.02287679,2190.6,2189.1,1.14202183]
[1773408208349,2.51623614,2191.2,2189.1,1.14202183]
[1773408208350,5.88158563,2191.8,2189.9,6.16573458]
[1773408208517,5.88158563,2191.6,2189.9,6.16573458]
[1773408208717,5.88158563,2191.6,2189.4,1.5744991]
[1773408208718,5.88158563,2191.6,2189.7,1.622]
[1773408208914,5.88358563,2191.1,2189.6,1.622]
[1773408209130,5.88158563,2191.1,2189.6,1.622]
[1773408209330,5.88158563,2191.1,2189.2,1.622]
[1773408209730,5.88158563,2191.1,2189.0,7.30779663]
[1773408209937,5.88158563,2191.1,2189.1,6.16573458]
[1773408210138,5.88158563,2191.6,2189.6,7.30749563]
[1773408210316,5.88158563,2191.6,2189.4,1.14182858]
[1773408210628,5.88158563,2191.4,2189.4,1.621]
[1773408210829,4.56266824,2191.8,2188.9,1.621]
[1773408210830,5.88158563,2191.2,2188.9,1.621]
[1773408211145,5.88158563,2190.8,2188.9,1.621]
[1773408211311,5.88158563,2190.8,2188.8,7.30787107]
[1773408211514,5.88158563,2190.5,2188.8,7.30787107]
[1773408212944,5.88158563,2191.2,2189.0,6.16573458]
[1773408213647,5.88158563,2190.9,2188.8,2.76013649]
[1773408214147,5.88158563,2190.9,2189.1,1.14202183]
[1773408214148,7.02272128,2190.8,2189.1,1.14202183]
[1773408214553,7.02272128,2190.8,2189.0,1.14204319]
[1773408214852,5.88158563,2190.4,2189.0,1.14204319]
[1773408215052,5.88158563,2190.4,2188.8,1.14217836]
[1773408215348,5.88158563,2189.8,2188.2,4.5699267]
[1773408215560,5.88158563,2189.6,2188.2,1.14249154]
[1773408216059,5.88158563,2189.6,2188.3,0.04569757]
[1773408216230,7.02336888,2189.6,2188.4,1.14238713]
[1773408216619,5.88158563,2189.6,2188.5,0.04569339]
[1773408217121,7.02336007,2189.6,2188.4,1.14238713]
[1773408217428,7.02336007,2189.6,2188.1,1.14254375]
[1773408217623,5.88158563,2189.5,2187.5,10.73705918]
[1773408217848,5.88158563,2189.5,2187.6,1.18851709]
[1773408218215,5.88158563,2189.3,2187.6,1.18851709]
[1773408218426,5.88158563,2189.3,2187.7,7.74023368]
[1773408218646,5.88158563,2189.3,2187.8,6.21144259]
[1773408218943,5.88158563,2189.3,2187.8,6.16573458]
[1773408219148,5.88158563,2189.3,2187.9,0.04570592]
[1773408219466,2.51623614,2189.7,2187.8,6.16573458]
[1773408219641,5.88158563,2189.6,2188.0,6.16573458]
[1773408219821,5.88158563,2189.6,2188.1,1.66470175]
[1773408220357,5.88158563,2190.5,2188.9,1.5744991]
[1773408220652,0.52050493,2191.3,2189.5,6.16573458]
[1773408220837,5.88158563,2191.2,2189.0,6.23127058]
[1773408221150,5.88158563,2191.2,2189.1,0.04568087]
[1773408221454,5.88158563,2191.2,2189.2,1.62]
[1773408221655,5.88158563,2191.0,2189.2,1.62]
[1773408221822,0.002,2190.3,2189.2,1.62]
[1773408222323,0.002,2190.3,2189.4,1.14186535]
[1773408222554,0.002,2190.3,2189.5,0.04567252]
[1773408222717,0.002,2190.3,2189.4,1.14186535]
[1773408222929,1.13988692,2193.2,2189.6,22.38395758]
[1773408223123,6.18379615,2193.1,2191.3,1.5744991]
[1773408223356,4.55856975,2193.7,2191.4,1.77148499]
[1773408223357,5.88158563,2193.7,2191.4,1.77148499]
[1773408223588,5.88158563,2193.5,2191.3,1.622]
[1773408223795,0.45966666,2193.4,2191.3,1.622]
[1773408223999,5.88158563,2193.3,2191.3,1.622]
[1773408224157,6.46962656,2192.7,2190.4,6.16573458]
[1773408224477,5.88158563,2192.5,2190.5,1.14129194]
[1773408225169,5.88158563,2192.5,2190.0,6.14059827]
[1773408225170,0.58804093,2191.8,2190.0,1.624]
[1773408225361,5.88158563,2191.8,2190.0,1.624]
[1773408225570,1.14019885,2192.6,2190.0,1.624]
[1773408225571,6.10842175,2193.6,2191.1,7.92823261]
[1773408225952,6.10842175,2193.4,2191.2,1.625]
[1773408226172,6.10842175,2193.4,2190.7,3.1994991]
[1773408226376,6.69646268,2193.4,2190.7,3.1994991]
[1773408226658,6.10842175,2193.2,2190.8,1.14113565]
[1773408226856,6.69646268,2193.2,2190.8,2.76613565]
[1773408227062,6.10842175,2193.0,2190.8,1.14113565]
[1773408228588,1.14019885,2192.6,2190.7,4.56454263]
[1773408229083,6.10842175,2192.5,2190.7,4.56454263]
[1773408229287,6.10842175,2192.2,2190.2,4.56561674]
[1773408229587,6.10842175,2192.2,2190.3,0.04565584]
[1773408229895,6.10842175,2192.2,2190.2,4.56561674]
[1773408229896,6.17395775,2193.3,2191.4,1.5744991]
[1773408230067,4.55876027,2193.6,2191.6,6.35373351]
[1773408230268,7.24785906,2194.1,2192.0,6.35373351]
[1773408230661,7.24785906,2194.1,2192.1,2.76745892]
[1773408230662,7.24794497,2193.9,2192.1,2.76745892]
[1773408230863,6.36462398,2193.8,2192.1,2.76745892]
[1773408231056,6.36462398,2193.8,2192.1,1.14045892]
[1773408231287,6.36462398,2193.8,2191.7,1.628]
[1773408231459,0.003,2193.0,2191.6,4.56270009]
[1773408231665,0.003,2193.0,2191.6,6.19070009]
[1773408231966,0.003,2193.0,2191.6,4.56270009]
[1773408232285,0.003,2193.0,2191.6,1.1407191]
[1773408232462,6.36762398,2193.0,2191.0,1.14103149]
[1773408232658,1.14004286,2192.9,2191.1,12.64443634]
[1773408232882,7.50765204,2193.0,2191.2,0.04563709]
[1773408233685,7.50765204,2193.0,2191.1,12.64443634]
[1773408233686,7.50765204,2193.0,2191.3,1.628]
[1773408234276,7.50765204,2193.0,2191.1,11.01643634]
[1773408234502,0.58804093,2192.5,2191.1,4.56381809]
[1773408234787,7.50492684,2192.4,2190.7,1.14118774]
[1773408235000,7.50492684,2192.4,2190.8,0.04564542]
[1773408235591,0.58804093,2191.8,2190.7,1.14118774]
[1773408235967,7.50492684,2192.4,2191.0,0.001]
[1773408235968,0.58804093,2191.3,2191.0,0.001]
[1773408236279,7.50492684,2192.4,2190.2,1.14144826]
[1773408236466,6.36462398,2191.7,2190.8,0.001]
[1773408236793,1.1407191,2191.6,2190.8,0.001]
[1773408237005,0.58804093,2190.9,2190.8,0.001]
[1773408237363,6.36462398,2191.5,2189.9,0.04566418]
[1773408237692,0.58704093,2191.0,2189.9,0.04566418]
[1773408237894,6.36462398,2191.5,2189.9,0.04566418]
[1773408238187,0.58704093,2191.1,2189.9,0.04566418]
[1773408238583,6.36462398,2191.5,2189.8,1.14165677]
[1773408238783,2.258,2192.0,2189.8,1.14165677]
[1773408238784,4.46416483,2193.3,2191.4,6.45261825]
[1773408238971,6.36462398,2193.8,2191.7,1.5744991]
[1773408239171,6.36462398,2193.8,2191.9,2.206]
[1773408239394,6.36462398,2193.8,2191.8,6.45261825]
[1773408239574,6.36462398,2193.8,2191.9,0.065536]
[1773408240278,3.7284449,2193.9,2191.8,0.0456246]
[1773408240279,6.36462398,2193.5,2191.8,0.0456246]
[1773408240475,6.36462398,2193.2,2191.1,0.065536]
[1773408240792,6.36462398,2192.6,2190.6,1.14123984]
[1773408241296,1.14004286,2192.9,2191.0,6.45261825]
[1773408241493,4.56002118,2193.0,2190.7,3.092933]
[1773408241494,1.13988692,2193.2,2191.3,6.45261825]
[1773408241703,7.5045109,2193.2,2190.9,1.627]
[1773408241905,7.5045109,2193.2,2191.0,0.04564125]
[1773408242205,6.36462398,2192.3,2191.0,0.04564125]
[1773408242367,8.62062398,2192.2,2190.7,0.0456475]
[1773408242568,0.58704093,2191.6,2190.7,0.0456475]
[1773408242874,7.50506047,2192.2,2190.8,1.14113565]
[1773408243087,0.58704093,2192.0,2190.8,1.14113565]
[1773408243308,7.50503533,2192.2,2190.8,1.14113565]
[1773408243674,7.50503533,2192.2,2190.4,1.14134404]
[1773408244097,0.58704093,2191.4,2190.4,1.14134404]
[1773408244300,7.50503533,2192.2,2190.4,1.14134404]
[1773408244878,6.36462398,2191.9,2190.4,1.14134404]
[1773408245106,0.08704093,2191.2,2190.3,1.76186348]
[1773408245306,7.93328693,2191.7,2190.3,0.62048658]
[1773408245604,6.36462398,2191.2,2190.3,0.56864202]
[1773408245901,6.36462398,2191.2,2189.5,0.04567252]
[1773408246100,6.45166491,2191.0,2189.0,1.142074]
[1773408246307,6.36462398,2191.0,2189.0,1.142074]
[1773408246672,0.08704093,2190.5,2189.0,1.142074]
[1773408246870,1.14131201,2190.5,2189.0,1.142074]
[1773408247072,6.36462398,2191.0,2189.0,1.142074]
[1773408247073,0.08704093,2190.3,2189.0,1.142074]
[1773408247298,6.36462398,2191.0,2189.0,1.142074]
[1773408247690,0.08704093,2190.6,2189.0,2.768074]
[1773408248076,0.08704093,2190.3,2189.0,2.769074]
[1773408248275,6.36462398,2191.0,2189.0,2.769074]
[1773408248603,0.08704093,2190.1,2189.0,1.142074]
[1773408249009,1.14155251,2190.0,2188.7,1.14223054]
[1773408249299,0.08704093,2189.7,2188.7,1.14223054]
[1773408249497,1.1415361,2190.1,2188.7,1.14223054]
[1773408249680,4.56513433,2190.6,2188.7,1.14223054]
[1773408249681,7.50575963,2190.8,2188.8,6.45261825]
[1773408249881,7.50575963,2190.8,2188.9,2.54807237]
[1773408250198,6.36462398,2190.6,2188.7,1.14223054]
[1773408250401,6.36462398,2190.5,2189.2,0.001]
[1773408250603,0.08704093,2190.0,2189.2,0.001]
[1773408250777,6.36462398,2190.5,2189.2,0.001]
[1773408250974,7.50596802,2190.4,2189.2,0.001]
[1773408251478,6.36462398,2191.0,2189.2,0.001]
[1773408252168,0.08704093,2190.5,2189.2,0.001]
[1773408252369,6.36462398,2191.0,2189.2,0.001]
[1773408252606,0.08704093,2190.7,2189.2,0.001]
[1773408252911,4.56391766,2191.5,2189.2,0.001]
[1773408252912,1.14082321,2191.4,2189.6,6.45261825]
[1773408253099,0.08704093,2191.3,2189.7,8.99827538]
[1773408253272,7.50540147,2191.5,2189.8,2.54585899]
[1773408253477,7.50540147,2191.5,2189.7,6.45261825]
[1773408253986,7.50539788,2191.5,2189.8,2.54628265]
[1773408254190,7.50539788,2191.5,2189.7,6.45261825]
[1773408254191,0.08704093,2191.0,2189.7,6.45261825]
[1773408254519,7.50539788,2191.5,2189.7,6.45261825]
[1773408254675,0.08704093,2191.0,2189.9,0.9]
[1773408254876,7.50539788,2191.5,2189.9,0.9]
[1773408255195,0.08704093,2190.9,2190.0,1.14155251]
[1773408255605,0.08704093,2190.5,2190.0,1.14155251]
[1773408255810,6.36462398,2191.3,2189.9,4.56621004]
[1773408255972,6.36462398,2190.9,2189.3,1.1419175]
[1773408256173,1.56866295,2191.0,2189.3,1.1419175]
[1773408256174,6.36462398,2190.5,2189.3,1.1419175]
[1773408256609,0.08704093,2190.1,2189.3,1.1419175]
[1773408256918,6.36462398,2190.5,2189.2,0.001]
[1773408257084,0.08704093,2189.8,2189.2,0.001]
[1773408257276,7.50596802,2190.4,2189.2,0.001]
[1773408257784,6.36462398,2189.7,2188.3,1.14243933]
[1773408258203,0.08604093,2189.3,2188.2,1.14345597]
[1773408258376,6.36462398,2189.7,2188.2,1.14345597]
[1773408258572,0.08604093,2189.3,2188.2,1.14345597]
[1773408258807,6.36462398,2189.7,2188.2,1.14345597]
[1773408258998,6.36462398,2189.7,2188.2,0.001]
[1773408258999,1.14176105,2189.6,2188.2,0.001]
[1773408259300,0.08604093,2189.2,2188.2,0.001]
[1773408259474,1.14176105,2189.6,2188.2,0.001]
[1773408259680,0.08604093,2189.3,2188.2,0.001]
[1773408259906,1.14176105,2189.6,2188.2,0.001]
[1773408260315,0.08604093,2189.2,2188.2,0.001]
[1773408260610,7.50638503,2189.6,2188.2,0.001]
[1773408260837,0.30179942,2191.0,2188.3,5.96688437]
[1773408261127,0.30179942,2191.0,2189.5,15.74396437]
[1773408261310,0.08604093,2190.7,2189.6,4.17383561]
[1773408261620,1.1410746,2191.0,2189.5,5.96688437]
[1773408261818,0.08604093,2190.4,2189.3,1.63]
[1773408262026,1.1410746,2191.0,2189.1,1.14202183]
[1773408262203,0.08604093,2190.6,2189.3,1.63]
[1773408262401,1.1410746,2191.0,2189.3,1.63]
[1773408262920,7.45714764,2191.0,2189.3,1.63]
[1773408263120,7.45714764,2191.0,2189.2,1.63]
[1773408263426,0.08604093,2190.6,2189.2,1.63]
[1773408263814,0.08604093,2190.0,2189.1,1.14202183]
[1773408264013,7.45714764,2191.0,2189.1,1.14202183]
[1773408265317,0.08604093,2190.4,2189.1,1.14202183]
[1773408265620,0.002,2190.3,2189.1,1.14202183]
[1773408265825,0.08604093,2190.0,2189.1,1.14202183]
[1773408266021,0.002,2190.3,2189.1,1.14202183]
[1773408266398,0.002,2190.3,2189.1,7.1089062]
[1773408266798,0.08604093,2190.1,2189.1,7.1089062]
[1773408267198,0.002,2190.3,2189.1,7.1089062]
[1773408267434,0.002,2190.3,2189.2,0.04567878]
[1773408267605,0.002,2190.3,2189.2,6.01256315]
[1773408267812,0.002,2190.5,2189.4,5.96688437]
[1773408268012,0.08804093,2190.5,2189.5,0.04567252]
[1773408268214,1.1411441,2190.8,2189.4,5.96688437]
[1773408268215,1.14116909,2190.8,2189.4,5.96688437]
[1773408268408,0.08604093,2190.5,2189.4,5.96688437]
[1773408268728,1.14082321,2191.4,2189.6,7.53554732]
[1773408269328,1.22708292,2191.0,2189.8,1.14165677]
[1773408269543,1.14101366,2191.1,2189.8,1.14165677]
[1773408270232,0.08604093,2190.6,2189.8,1.14165677]
[1773408270618,0.08604093,2190.3,2189.8,2.76565677]
[1773408270802,1.14101366,2191.1,2189.8,2.76565677]
[1773408271322,6.31607304,2191.2,2189.8,2.76565677]
[1773408271511,6.31607304,2191.2,2189.8,2.76465677]
[1773408272236,0.08604093,2190.8,2189.8,2.76465677]
[1773408272406,6.31607304,2191.2,2189.8,2.76465677]
[1773408272608,0.08604093,2190.8,2189.9,2.56090813]
[1773408272818,6.31607304,2191.2,2190.0,1.622]
[1773408273131,0.08604093,2190.8,2189.9,1.622]
[1773408273527,1.14097941,2191.1,2190.0,1.14155251]
[1773408273724,0.08604093,2190.8,2190.0,1.14155251]
[1773408273936,4.56331948,2191.4,2190.0,1.14155251]
[1773408273937,6.31607304,2191.7,2190.0,7.10843688]
[1773408274233,0.08604093,2191.6,2190.2,5.96688437]
[1773408274546,0.08604093,2191.6,2190.3,2.56198106]
[1773408274747,0.08604093,2191.3,2190.4,2.56198106]
[1773408275047,1.14051094,2192.0,2190.2,6.46688437]
[1773408275232,0.08604093,2191.6,2190.3,2.55986748]
[1773408275403,7.45658398,2192.0,2190.4,2.55986748]
[1773408275608,0.08604093,2191.8,2190.5,2.55987302]
[1773408275862,7.45658398,2192.0,2190.6,2.55974014]
[1773408276151,0.08604093,2191.7,2190.7,1.619]
[1773408276350,7.45658398,2192.0,2190.7,1.619]
[1773408276653,0.08604093,2191.8,2190.7,1.619]
[1773408276855,7.45658398,2192.0,2190.7,1.619]
[1773408277246,7.45658398,2192.0,2190.4,7.10822841]
[1773408277560,6.31607304,2191.8,2190.4,0.04565376]
[1773408277764,0.08604093,2191.2,2190.4,0.04565376]
[1773408277962,6.31607304,2191.8,2190.4,0.04565376]
[1773408278263,0.08604093,2191.1,2190.4,0.04565376]
[1773408278438,6.31607304,2191.8,2190.4,0.04565376]
[1773408278642,0.08604093,2191.2,2190.4,0.04565376]
[1773408279160,0.08604093,2190.8,2190.4,0.04565376]
[1773408279347,6.31607304,2191.8,2190.4,0.04565376]
[1773408279750,0.08604093,2191.1,2190.4,1.14133402]
[1773408280129,0.08604093,2190.7,2190.4,1.14133402]
[1773408280328,6.31607304,2191.6,2190.3,1.14136051]
[1773408280733,0.08604093,2191.0,2190.3,1.14136051]
[1773408280952,6.31607304,2191.6,2190.3,1.14136051]
[1773408281156,0.08604093,2190.9,2190.3,1.14136051]
[1773408281561,6.31607304,2191.6,2190.3,1.14136051]
[1773408281748,0.08604093,2191.0,2190.3,1.14136051]
[1773408282132,1.14093842,2191.2,2190.4,0.04565376]
[1773408282757,0.08604093,2190.8,2190.4,0.04565376]
[1773408283253,0.08604093,2190.6,2190.4,0.04565376]
[1773408283459,1.14093842,2191.2,2190.4,0.04565376]
[1773408283638,1.14077116,2191.5,2190.5,1.14129194]
[1773408283846,7.4568442,2191.5,2190.6,0.04564959]
[1773408284238,0.08604093,2190.9,2190.6,0.04564959]
[1773408284630,7.4568442,2191.5,2190.6,0.04564959]
[1773408285166,7.4568442,2191.5,2190.5,1.14129194]
[1773408285365,7.4568442,2191.5,2190.6,0.04564959]
[1773408285735,0.08604093,2190.9,2190.7,1.14118774]
[1773408285937,1.14096546,2191.2,2190.7,1.14118774]
[1773408286264,0.08604093,2190.8,2190.6,1.14120686]
[1773408286469,1.14096546,2191.2,2190.6,1.14120686]
[1773408286668,1.14096546,2191.2,2190.5,1.14126871]
[1773408286871,1.14096546,2191.2,2190.3,1.14135576]
[1773408287371,0.08604093,2190.7,2190.3,1.14135576]
[1773408287769,0.08604093,2190.5,2190.3,1.14135576]
[1773408287950,6.23617092,2191.3,2190.2,1.64142014]
[1773408288344,0.08604093,2190.7,2190.2,1.64142014]
[1773408288744,0.08604093,2190.4,2190.2,1.64142014]
[1773408288945,6.23617092,2191.3,2190.2,1.64142014]
[1773408289242,0.08604093,2190.8,2190.2,1.64142014]
[1773408289444,6.23617092,2191.3,2190.2,1.64142014]
[1773408289679,6.23617092,2191.0,2190.2,0.5]
[1773408289982,1.14108357,2190.9,2190.2,0.5]
[1773408290769,0.08604093,2190.4,2190.2,0.5]
[1773408290973,1.14108357,2190.9,2190.2,0.5]
[1773408290974,1.14097941,2191.2,2190.3,1.14139615]
[1773408291155,1.14097941,2191.2,2190.3,1.18705199]
[1773408291351,7.33324732,2191.2,2190.3,1.14139615]
[1773408291667,6.19226791,2191.1,2190.3,1.14139615]
[1773408291872,0.08604093,2190.6,2190.3,1.14139615]
[1773408292086,1.14103149,2191.0,2190.3,1.14139615]
[1773408292388,6.19226791,2190.8,2190.2,0.5]
[1773408292741,0.08604093,2190.3,2189.4,8.07922912]
[1773408292976,1.68290099,2190.6,2189.3,2.01244751]
[1773408292977,6.19226791,2190.5,2189.3,1.14187788]
[1773408293176,1.68290099,2190.2,2189.3,1.14187788]
[1773408293382,0.08604093,2190.0,2189.3,1.14187788]
[1773408293671,7.8751689,2190.2,2189.3,1.14187788]
[1773408293968,0.08604093,2189.7,2189.2,0.001]
[1773408294182,7.33376829,2190.1,2189.2,0.001]
[1773408294767,0.08604093,2189.7,2189.2,0.001]
[1773408295280,0.08604093,2189.4,2189.2,0.001]
[1773408295482,7.33376829,2190.1,2189.2,0.001]
[1773408295684,6.19226791,2189.9,2189.2,0.001]
[1773408295844,0.08604093,2189.3,2189.2,0.001]
[1773408296267,1.14180293,2189.6,2189.2,0.001]
[1773408297471,1.14180293,2189.6,2189.0,0.001]
[1773408297659,1.13869249,2189.6,2189.0,0.001]
[1773408297860,6.19226791,2189.5,2189.0,0.001]
[1773408298072,1.14186535,2189.4,2188.5,0.001]
[1773408298246,7.33413326,2189.4,2188.5,0.001]
[1773408300319,7.33413326,2189.4,2188.3,1.14343933]
[1773408300320,7.76536948,2188.7,2188.3,0.001]
[1773408300467,6.19226791,2188.7,2188.0,0.001]
[1773408301581,6.19226791,2188.0,2186.9,1.51367132]
[1773408301766,0.41089941,2189.3,2186.9,1.51367132]
[1773408301767,6.19226791,2188.4,2186.9,1.1431656]
[1773408301970,6.19226791,2188.4,2187.1,6.30009507]
[1773408302295,6.19226791,2188.4,2186.8,4.57268279]
[1773408302296,7.33470724,2188.3,2186.8,1.1431896]
[1773408302494,7.33470724,2188.3,2186.8,9.04128467]
[1773408302705,7.33470724,2188.3,2186.9,6.30009507]
[1773408302861,7.33470724,2188.3,2186.8,1.1431896]
[1773408303189,7.33470724,2188.3,2186.6,1.14332754]
[1773408303389,6.19226791,2187.8,2186.5,1.14334782]
[1773408303568,6.19226791,2187.8,2186.5,7.44344289]
[1773408304193,6.19226791,2188.6,2186.9,6.30009507]
[1773408304619,4.56933973,2188.7,2187.1,6.30009507]
[1773408304896,1.14223054,2188.7,2187.1,6.30009507]
[1773408305272,1.14223054,2188.7,2187.3,0.001]
[1773408305474,1.14223054,2188.7,2187.3,6.30109507]
[1773408305676,1.14223054,2188.7,2187.5,0.001]
[1773408305900,1.14223054,2188.7,2187.3,6.30009507]
[1773408306295,1.14200461,2189.2,2187.5,6.30009507]
[1773408307189,1.14200461,2189.2,2187.8,0.001]
[1773408307499,1.14200461,2189.2,2187.9,1.597]
[1773408307703,1.14200461,2189.2,2188.1,0.001]
[1773408308084,1.14200461,2189.2,2187.8,6.30009507]
[1773408308316,1.14200461,2189.2,2187.9,2.7396482]
[1773408309016,1.14200461,2189.2,2187.9,1.1426482]
[1773408309325,1.14200461,2189.2,2187.9,1.1436482]
[1773408309489,1.14200461,2189.2,2187.9,1.1426482]
[1773408309682,7.33427252,2189.2,2187.9,1.1426482]
[1773408309888,7.33427252,2189.2,2187.9,1.1436482]
[1773408310209,7.33427252,2189.2,2187.9,1.1426482]
[1773408310411,7.33427252,2189.2,2187.6,1.1428049]
[1773408310591,1.14200461,2189.2,2187.6,7.44289997]
[1773408310791,1.14200461,2189.2,2188.0,0.001]
[1773408311094,7.33427252,2189.2,2187.7,1.596]
[1773408311300,7.33427252,2189.2,2187.9,0.001]
[1773408311801,7.33427252,2189.2,2187.8,1.597]
[1773408311992,7.33427252,2189.2,2187.8,1.596]
[1773408312399,7.33427252,2189.2,2187.9,1.1436482]
[1773408312594,7.33427252,2189.2,2187.9,0.001]
[1773408313018,7.33427252,2189.2,2188.0,0.001]
[1773408313313,7.33427252,2189.2,2187.8,2.73867937]
[1773408313511,7.33427252,2189.2,2187.9,0.001]
[1773408313913,7.33427252,2189.2,2188.0,0.001]
[1773408314119,7.33427252,2189.2,2187.8,2.73767937]
[1773408314290,7.33427252,2189.2,2187.6,4.57113585]
[1773408315412,6.19226791,2189.1,2187.6,1.1428049]
[1773408315815,6.19226791,2189.1,2187.7,0.001]
[1773408316323,1.142074,2189.0,2187.7,0.001]
[1773408316532,6.19226791,2188.9,2187.7,0.001]
[1773408316712,6.19226791,2188.9,2187.6,4.2080223]
[1773408317031,6.19226791,2188.9,2187.9,0.001]
[1773408317627,6.19226791,2188.9,2187.5,4.57126099]
[1773408317926,6.19226791,2188.9,2187.6,0.001]
[1773408318331,1.14217836,2188.8,2187.5,4.57126099]
[1773408318494,1.14217836,2188.8,2187.5,8.77928329]
[1773408318893,7.33444627,2188.8,2187.8,0.001]
[1773408319322,7.33444627,2188.8,2187.6,1.593]
[1773408319500,7.33444627,2188.8,2187.8,0.001]
[1773408319698,7.33444627,2188.8,2187.6,1.593]
[1773408320126,7.33444627,2188.8,2188.0,0.001]
[1773408320434,7.33444627,2188.8,2187.7,1.593]
[1773408320936,7.33444627,2188.8,2187.9,0.001]
[1773408321122,7.33444627,2188.8,2187.6,1.593]
[1773408321433,7.33444627,2188.8,2187.7,4.2080223]
[1773408322021,7.33444627,2188.8,2188.1,0.001]
[1773408322336,7.33444627,2188.8,2187.6,1.593]
[1773408322516,7.33444627,2188.8,2187.9,0.001]
[1773408322721,7.33444627,2188.8,2187.7,1.14275266]
[1773408323047,7.33444627,2188.8,2187.9,0.001]
[1773408323412,7.33444627,2188.8,2187.7,1.14275266]
[1773408324114,7.33444627,2188.8,2188.0,0.001]
[1773408324616,7.33444627,2188.8,2188.2,0.001]
[1773408324808,7.33444627,2188.8,2187.7,1.14275266]
[1773408325009,7.33444627,2188.8,2188.0,0.001]
[1773408325537,7.33444627,2188.8,2188.1,0.001]
[1773408325762,7.33444627,2188.8,2187.7,1.14275266]
[1773408326050,7.33444627,2188.8,2187.9,0.001]
[1773408326440,1.14228273,2188.6,2187.7,1.14275266]
[1773408326610,1.14228273,2188.6,2187.8,0.001]
[1773408326812,1.14228273,2188.6,2187.7,1.14275266]
[1773408327112,6.37708191,2188.6,2187.9,0.001]
[1773408327310,6.37708191,2188.6,2187.7,1.14275266]
[1773408327624,6.37708191,2188.6,2187.9,0.001]
[1773408327832,6.37708191,2188.6,2187.7,1.14275266]
[1773408328030,6.37708191,2188.6,2188.0,0.001]
[1773408328419,6.37708191,2188.6,2187.7,1.14275266]
[1773408328745,7.51940089,2188.6,2188.0,0.001]
[1773408329044,7.51940089,2188.6,2188.1,0.001]
[1773408329249,7.51940089,2188.6,2187.7,1.14275266]
[1773408329421,7.51940089,2188.6,2187.8,2.58025234]
[1773408329622,7.51940089,2188.6,2188.0,0.001]
[1773408330011,7.51940089,2188.6,2188.2,0.001]
[1773408330208,7.51940089,2188.6,2187.7,1.14275266]
[1773408330530,7.51940089,2188.6,2187.9,0.001]
[1773408330930,7.51940089,2188.6,2187.5,1.14385714]
[1773408331134,7.51940089,2188.6,2187.8,0.001]
[1773408331332,7.51940089,2188.6,2187.5,1.14385714]
[1773408331533,7.51940089,2188.6,2187.6,2.62612193]
[1773408331741,7.51940089,2188.6,2187.8,0.001]
[1773408331934,7.51940089,2188.6,2187.8,0.04670801]
[1773408332249,7.51940089,2188.6,2187.6,0.04571219]
[1773408332433,7.51940089,2188.6,2187.7,2.58093086]
[1773408332748,7.51940089,2188.6,2187.9,0.001]
[1773408333138,7.51940089,2188.6,2188.0,0.001]
[1773408333449,7.51940089,2188.6,2187.8,1.18839534]
[1773408333618,7.51940089,2188.6,2187.9,0.001]
[1773408333818,7.51940089,2188.6,2187.6,1.1427829]
[1773408334014,7.51940089,2188.6,2187.5,0.001]
[1773408334742,7.51940089,2188.6,2187.5,0.002]
[1773408334936,7.51940089,2188.6,2187.5,0.001]
[1773408335153,7.51940089,2188.6,2187.5,0.002]